fUSD/lending_fUSD_20240327
["ID","MTS","AMOUNT","RATE_DAILY","PERIOD"]
[320767800,1711552243227,-454.08755692,0.000493,2]
[320767803,1711552243243,-784.0,0.000493,2]
[320767807,1711552243258,-194.0,0.000493,2]
[320767810,1711552243273,-1250.0,0.000493,2]
[320767814,1711552243288,-500.0,0.000493,2]
[320767819,1711552243303,-501.19848525,0.000493,2]
[320767822,1711552243318,-2000.0,0.00049315,30]
[320767826,1711552243333,-1000.0,0.00049315,60]
[320767828,1711552243348,-265.96,0.000494,7]
[320767831,1711552243363,-4771.0,0.00049485,2]
[320767834,1711552243377,-2443.0,0.00049485,2]
[320767836,1711552243392,-1176.0,0.00049485,2]
[320767839,1711552243407,-1003.0,0.00049485,2]
[320767841,1711552243422,-2000.0,0.00049589,30]
[320767844,1711552243437,-151.46377866,0.00049798,43]
[320767847,1711552243451,-824.0,0.00049844,7]
[320767848,1711552243466,-2000.0,0.00049863,30]
[320767849,1711552243481,-150.0,0.00049894,30]
[320767850,1711552243500,-83618.24580954,0.000499,30]
[320767851,1711552243515,-2641.26513815,0.0005,30]
[320767852,1711552243531,-309.3776376,0.0005,2]
[320767853,1711552243546,-5000.0,0.0005,30]
[320767854,1711552243563,-836.88550489,0.0005,2]
[320767855,1711552243584,-421.0110837,0.0005,30]
[320767856,1711552243599,-19186.70219207,0.0005,30]
[320767857,1711552243614,-430.19799114,0.0005,28]
[320767858,1711552243631,-4077.0,0.0005,14]
[320767859,1711552243640,-450.0,0.0005,50]
[320767860,1711552243650,-150.0,0.0005,30]
[320767861,1711552243659,-150.0,0.0005,2]
[320767862,1711552243669,-758.20514175,0.0005,14]
[320767863,1711552243679,-901.27,0.0005,10]
[320767864,1711552243927,-2229.28872633,0.0005,2]
[320767865,1711552243960,-116726.27316552,0.0005,120]
[320767866,1711552243981,-15661.95556007,0.0005,120]
[320767867,1711552243991,-150.0,0.0005,10]
[320767868,1711552244000,-1160.0,0.0005,120]
[320767869,1711552244008,-10000.0,0.0005,14]
[320767870,1711552244018,-10000.0,0.0005,14]
[320767871,1711552244027,-7137.00982734,0.0005,14]
[320767872,1711552244036,-150.0,0.00050038,2]
[320767873,1711552244045,-200.0,0.00050038,120]
[320767874,1711552244054,-150.0,0.00050038,120]
[320767875,1711552244063,-150.0,0.00050038,120]
[320767876,1711552244073,-1382.689,0.00050038,120]
[320767877,1711552244082,-2420.0,0.00050038,120]
[320767878,1711552244091,-458.0,0.00050038,120]
[320767879,1711552244100,-961.817,0.00050038,120]
[320767880,1711552244110,-1254.182,0.00050038,120]
[320767881,1711552244119,-1225.0,0.00050038,120]
[320767882,1711552244128,-537.152,0.00050038,120]
[320767883,1711552244138,-433.0,0.00050038,120]
[320767884,1711552244147,-1267.0,0.00050038,120]
[320767885,1711552244158,-610.765,0.00050038,120]
[320767886,1711552244167,-281.658,0.00050038,120]
[320767887,1711552244177,-807.59,0.00050038,120]
[320767888,1711552244189,-1138.0,0.00050038,120]
[320767889,1711552244199,-218.296,0.00050038,120]
[320767890,1711552244208,-1468.485,0.00050038,120]
[320767891,1711552244221,-2959.0,0.00050038,120]
[320767892,1711552244232,-427.171,0.00050038,120]
[320767893,1711552244243,-202.243,0.00050038,120]
[320767894,1711552244252,-227.526,0.00050038,120]
[320767895,1711552244263,-1626.0,0.00050038,120]
[320767896,1711552244272,-2427.037,0.00050038,120]
[320767897,1711552244283,-150.0,0.00050038,2]
[320767898,1711552244293,-222.0,0.00050038,2]
[320767899,1711552244302,-4751.23148744,0.00050107,26]
[320767900,1711552244312,-2000.0,0.00050136,30]
[320767901,1711552244323,-1278.17,0.00050137,120]
[320767902,1711552244333,-208.0,0.0005019,30]
[320767903,1711552244344,-2000.0,0.0005041,30]
[320767904,1711552244354,-1000.0,0.000505,31]
[320767905,1711552244363,-2000.0,0.00050578,10]
[320767906,1711552244373,-1309.29,0.00050583,10]
[320767907,1711552244381,-561.02,0.00050684,30]
[320767908,1711552244391,-1000.0,0.00050684,60]
[320767909,1711552244401,-585.01,0.00050685,2]
[320767910,1711552244409,-16365.83818175,0.00050849,2]
[320767911,1711552244419,-9121.36445504,0.00050849,2]
[320767912,1711552244428,-500.0,0.0005088,120]
[320767913,1711552244436,-815.37,0.00050883,2]
[320767914,1711552244446,-5079.38023893,0.000509,120]
[320767915,1711552244455,-5079.38023882,0.000509,120]
[320767916,1711552244465,-5079.38023882,0.000509,120]
[320767917,1711552244474,-5079.38023882,0.000509,120]
[320767918,1711552244483,-5079.38023882,0.000509,120]
[320767919,1711552244492,-5079.38023882,0.000509,120]
[320767920,1711552244501,-5079.38023882,0.000509,120]
[320767921,1711552244511,-5079.38023882,0.000509,120]
[320767922,1711552244520,-5079.38023882,0.000509,120]
[320767923,1711552244529,-5079.38023882,0.000509,120]
[320767924,1711552244538,-5079.38023882,0.000509,120]
[320767925,1711552244547,-5079.38023882,0.000509,120]
[320767926,1711552244556,-5079.38023882,0.000509,120]
[320767927,1711552244566,-5079.38023882,0.000509,120]
[320767928,1711552244575,-5079.38023882,0.000509,120]
[320767929,1711552244584,-5079.38023882,0.000509,120]
[320767930,1711552244593,-5079.38023882,0.000509,120]
[320767931,1711552244602,-5079.38023882,0.000509,120]
[320767932,1711552244611,-5079.38023882,0.000509,120]
[320767933,1711552244620,-5079.38023882,0.000509,120]
[320767934,1711552244630,-200.0,0.00050912,30]
[320767935,1711552244639,-150.0,0.00050933,30]
[320767936,1711552244649,-151.46377866,0.00050979,48]
[320767937,1711552244660,-1035.0,0.00051,31]
[320767938,1711552244669,-629.0,0.00051,32]
[320767939,1711552244678,-1002.0,0.00051,30]
[320767940,1711552244687,-450.0,0.00051,51]
[320767941,1711552244697,-343.0,0.00051,120]
[320767942,1711552244706,-36876.75843523,0.00051,10]
[320767943,1711552244717,-1000.0,0.00051,120]
[320767944,1711552244726,-1672.79166718,0.000511,30]
[320767945,1711552244736,-22460.87192228,0.000511,7]
[320767946,1711552244746,-309.0,0.000511,120]
[320767947,1711552244755,-161.032616,0.00051148,92]
[320767948,1711552244764,-322.065232,0.00051448,94]
[320767949,1711552244775,-161.032617,0.00051548,93]
[320767950,1711552244784,-200.0,0.0005155,30]
[320767951,1711552244794,-208.0,0.0005155,30]
[320767952,1711552244803,-173.032621,0.00051598,80]
[320767953,1711552244812,-4751.23148744,0.00051666,28]
[320767954,1711552244824,-4356.44014135,0.000517,117]
[320767955,1711552244833,-500.0,0.0005172,120]
[320767956,1711552244842,-844.74,0.00051726,120]
[320767957,1711552244853,-161.032616,0.00051748,96]
[320767958,1711552244863,-302.065234,0.00051748,95]
[320767959,1711552244873,-161.032616,0.00051752,94]
[320767960,1711552244883,-302.065234,0.00051788,77]
[320767961,1711552244893,-346.065242,0.00051798,79]
[320767962,1711552244903,-400.0,0.00051845,120]
[320767963,1711552244913,-302.065242,0.00051848,74]
[320767964,1711552244922,-302.065242,0.00051878,83]
[320767965,1711552244931,-346.065242,0.00051898,93]
[320767966,1711552244940,-302.065234,0.00051948,97]
[320767967,1711552244949,-302.065232,0.00051952,96]
[320767968,1711552244958,-150.0,0.00051973,30]
[320767969,1711552244968,-284788.01165749,0.0005198,30]
[320767970,1711552244978,-2436.94712002,0.00052,120]
[320767971,1711552244987,-330.0,0.00052,2]
[320767972,1711552244997,-29148.13710744,0.00052,30]
[320767973,1711552245006,-499.999999,0.00052,6]
[320767974,1711552245018,-150.0,0.00052,30]
[320767975,1711552245027,-2500.0,0.00052,120]
[320767976,1711552245036,-2500.0,0.00052,120]
[320767977,1711552245046,-2500.0,0.00052,120]
[320767978,1711552245055,-483.097851,0.00052052,99]
[320767979,1711552245067,-302.065232,0.00052052,98]
[320767980,1711552245077,-3000.0,0.00052054,120]
[320767981,1711552245086,-1000.0,0.00052054,60]
[320767982,1711552245096,-2706.55,0.00052054,2]
[320767983,1711552245108,-2500.0,0.000521,120]
[320767984,1711552245118,-2500.0,0.000521,120]
[320767985,1711552245128,-151.46377866,0.00052161,52]
[320767986,1711552245142,-151.0,0.00052181,10]
[320767987,1711552245151,-3000.0,0.00052191,120]
[320767988,1711552245161,-2500.0,0.000522,120]
[320767989,1711552245172,-2500.0,0.000522,120]
[320767990,1711552245183,-2500.0,0.000523,120]
[320767991,1711552245193,-2500.0,0.000523,120]
[320767992,1711552245203,-17591.0,0.000523,120]
[320767993,1711552245214,-1275.92,0.00052328,120]
[320767994,1711552245226,-150.0,0.00052344,120]
[320767995,1711552245237,-2500.0,0.000524,120]
[320767996,1711552245246,-2500.0,0.000524,120]
[320767997,1711552245258,-4771.0,0.00052485,120]
[320767998,1711552245268,-1176.0,0.00052485,120]
[320767999,1711552245278,-1003.0,0.00052485,120]
[320768000,1711552245288,-302.065418,0.00052498,102]
[320768001,1711552245300,-2564.48,0.000525,120]
[320768002,1711552245311,-2500.0,0.000525,120]
[320768003,1711552245323,-2500.0,0.000525,120]
[320768004,1711552245333,-501.0,0.00052576,120]
[320768005,1711552245343,-551.0,0.00052576,120]
[320768006,1711552245356,-672.0,0.00052576,120]
[320768007,1711552245366,-2500.0,0.000526,120]
[320768008,1711552245376,-2500.0,0.000526,120]
[320768009,1711552245386,-2500.0,0.000527,120]
[320768010,1711552245395,-2500.0,0.000527,120]
[320768011,1711552245405,-150.0,0.00052706,120]
[320768012,1711552245415,-2500.0,0.000528,120]
[320768013,1711552245424,-451.74,0.000528,120]
[320768014,1711552245434,-600.0,0.000528,120]
[320768015,1711552245443,-1500.0,0.000528,120]
[320768016,1711552245453,-501.0,0.00052849,120]
[320768017,1711552245463,-551.0,0.00052849,120]
[320768018,1711552245473,-672.0,0.00052849,120]
[320768019,1711552245482,-171.86475117,0.0005285,120]
[320768020,1711552245492,-2706.55,0.00052876,120]
[320768021,1711552245501,-150.0,0.00052899,14]
[320768022,1711552245510,-149999.0,0.000529,30]
[320768023,1711552245521,-159606.83318105,0.000529,16]
[320768024,1711552245530,-2500.0,0.000529,120]
[320768025,1711552245539,-351997.1771019,0.000529,30]
[320768026,1711552245548,-209.82449997,0.000529,30]
[320768027,1711552245557,-151.0,0.000529,120]
[320768028,1711552245567,-151.0,0.000529,120]
[320768029,1711552245576,-151.0,0.000529,120]
[320768030,1711552245586,-151.0,0.000529,120]
[320768031,1711552245596,-151.0,0.000529,120]
[320768032,1711552245605,-200.0,0.0005291,30]
[320768033,1711552245615,-208.0,0.0005291,30]
[320768034,1711552245624,-336477.71028035,0.0005299,30]
[320768035,1711552245633,-151.0,0.0005299,30]
[320768036,1711552245643,-151.0,0.0005299,30]
[320768037,1711552245653,-151.968571,0.0005299,120]
[320768038,1711552245663,-285.072011,0.0005299,30]
[320768039,1711552245672,-400.0,0.0005299,60]
[320768040,1711552245682,-1812.5732,0.0005299,120]
[320768041,1711552245691,-1812.5732,0.0005299,120]
[320768042,1711552245701,-400.0,0.0005299,60]
[320768043,1711552245710,-167.203434,0.0005299,7]
[320768044,1711552245720,-175.021441,0.0005299,120]
[320768045,1711552245730,-175.021441,0.0005299,120]
[320768046,1711552245739,-151.0,0.0005299,120]
[320768047,1711552245749,-152.141664,0.0005299,120]
[320768048,1711552245758,-151.0,0.0005299,120]
[320768049,1711552245767,-151.0,0.0005299,120]
[320768050,1711552245777,-816.77915,0.0005299,120]
[320768051,1711552245786,-151.0,0.0005299,120]
[320768052,1711552245796,-816.77915,0.0005299,120]
[320768053,1711552245806,-2000.0,0.00053,120]
[320768054,1711552245816,-734.92930057,0.00053,20]
[320768055,1711552245826,-500.0,0.00053,120]
[320768056,1711552245836,-450.0,0.00053,55]
[320768057,1711552245846,-2000.0,0.00053,120]
[320768058,1711552245857,-2500.0,0.00053,120]
[320768059,1711552245867,-21649.4251163,0.00053,30]
[320768060,1711552245878,-250.81,0.00053,30]
[320768061,1711552245890,-2223.1,0.00053023,117]
[320768062,1711552245899,-158.26380816,0.00053025,60]
[320768063,1711552245910,-150.0,0.00053038,120]
[320768064,1711552245919,-1381.0,0.00053038,120]
[320768065,1711552245929,-2420.0,0.00053038,120]
[320768066,1711552245938,-458.0,0.00053038,120]
[320768067,1711552245948,-961.0,0.00053038,120]
[320768068,1711552245960,-1252.0,0.00053038,120]
[320768069,1711552245970,-1225.0,0.00053038,120]
[320768070,1711552245979,-537.0,0.00053038,120]
[320768071,1711552245988,-433.0,0.00053038,120]
[320768072,1711552245998,-1267.0,0.00053038,120]
[320768073,1711552246007,-604.0,0.00053038,120]
[320768074,1711552246017,-278.0,0.00053038,120]
[320768075,1711552246026,-802.0,0.00053038,120]
[320768076,1711552246035,-1138.0,0.00053038,120]
[320768077,1711552246044,-150.0,0.00053038,120]
[320768078,1711552246053,-1461.0,0.00053038,120]
[320768080,1711552246062,-2959.0,0.00053038,120]
[320768081,1711552246073,-358.0,0.00053038,120]
[320768082,1711552246083,-150.0,0.00053038,120]
[320768083,1711552246092,-1626.0,0.00053038,120]
[320768084,1711552246102,-2423.0,0.00053038,120]
[320768085,1711552246113,-213.0,0.00053038,2]
[320768086,1711552246123,-2500.0,0.000531,120]
[320768087,1711552246134,-411.85993796,0.000531,30]
[320768090,1711552246145,-501.0,0.00053123,120]
[320768092,1711552246156,-551.0,0.00053123,120]
[320768094,1711552246165,-672.0,0.00053123,120]
[320768096,1711552246175,-815.37,0.00053147,2]
[320768098,1711552246185,-156.48219575,0.00053185,60]
[320768100,1711552246195,-158.54465154,0.0005319,60]
[320768101,1711552246205,-2500.0,0.000532,120]
[320768103,1711552246215,-4751.23148744,0.00053225,30]
[320768105,1711552246225,-151.0,0.00053263,2]
[320768107,1711552246234,-157.62305039,0.00053269,60]
[320768108,1711552246244,-2500.0,0.000533,120]
[320768109,1711552246254,-154.78248493,0.00053303,60]
[320768111,1711552246265,-158.26380816,0.00053307,60]
[320768113,1711552246274,-217.21979707,0.00053329,60]
[320768115,1711552246283,-151.55112148,0.00053336,60]
[320768116,1711552246293,-151.46377866,0.00053342,57]
[320768117,1711552246302,-5000.0,0.00053344,2]
[320768118,1711552246311,-217.21979707,0.00053357,60]
[320768120,1711552246322,-501.0,0.00053397,120]
[320768122,1711552246331,-551.0,0.00053397,120]
[320768124,1711552246340,-672.0,0.00053397,120]
[320768126,1711552246349,-2500.0,0.000534,120]
[320768128,1711552246358,-2000.0,0.00053424,120]
[320768130,1711552246367,-2000.0,0.00053424,120]
[320768131,1711552246376,-2000.0,0.00053424,120]
[320768132,1711552246385,-2000.0,0.00053424,120]
[320768133,1711552246394,-2000.0,0.00053424,120]
[320768134,1711552246403,-2000.0,0.00053424,120]
[320768135,1711552246412,-2000.0,0.00053424,120]
[320768136,1711552246421,-2000.0,0.00053424,120]
[320768137,1711552246431,-2000.0,0.00053424,120]
[320768138,1711552246440,-2000.0,0.00053424,120]
[320768139,1711552246450,-2000.0,0.00053424,120]
[320768140,1711552246459,-2000.0,0.00053424,120]
[320768141,1711552246468,-2000.0,0.00053424,120]
[320768142,1711552246477,-1051.95282699,0.00053424,120]
[320768143,1711552246487,-1000.0,0.00053424,60]
[320768144,1711552246496,-156.48219575,0.00053425,60]
[320768145,1711552246506,-217.21979707,0.00053429,60]
[320768146,1711552246516,-154.78248493,0.00053437,60]
[320768147,1711552246526,-150.0,0.00053496,7]
[320768148,1711552246536,-2000.0,0.000535,120]
[320768149,1711552246545,-2500.0,0.000535,120]
[320768150,1711552246554,-217.21979707,0.000535,60]
[320768151,1711552246564,-154.78248493,0.00053539,60]
[320768152,1711552246575,-156.48219575,0.00053547,60]
[320768153,1711552246585,-150.0,0.00053553,7]
[320768154,1711552246594,-217.21979707,0.00053556,60]
[320768155,1711552246603,-217.21979707,0.00053565,60]
[320768156,1711552246613,-154.98166736,0.00053572,60]
[320768157,1711552246622,-212.55588251,0.00053588,60]
[320768158,1711552246632,-154.78248493,0.00053598,60]
[320768159,1711552246641,-2500.0,0.000536,120]
[320768160,1711552246650,-152.29,0.000536,7]
[320768161,1711552246660,-152.29,0.000536,7]
[320768162,1711552246670,-152.29,0.000536,7]
[320768163,1711552246679,-152.29,0.000536,7]
[320768164,1711552246688,-2790.71,0.000536,7]
[320768165,1711552246698,-2790.71,0.000536,7]
[320768166,1711552246707,-2790.71,0.000536,7]
[320768167,1711552246717,-2790.71,0.000536,7]
[320768168,1711552246727,-2790.71,0.000536,7]
[320768169,1711552246736,-2790.71,0.000536,7]
[320768170,1711552246745,-2790.71,0.000536,7]
[320768171,1711552246755,-2790.71,0.000536,7]
[320768172,1711552246764,-2790.71,0.000536,7]
[320768173,1711552246774,-2790.71,0.000536,7]
[320768174,1711552246783,-2790.71,0.000536,7]
[320768175,1711552246793,-2790.71,0.000536,7]
[320768176,1711552246801,-2790.71,0.000536,7]
[320768177,1711552246811,-2790.71,0.000536,7]
[320768178,1711552246821,-2790.71,0.000536,7]
[320768179,1711552246831,-2790.71,0.000536,7]
[320768180,1711552246840,-2790.71,0.000536,7]
[320768181,1711552246849,-2790.71,0.000536,7]
[320768182,1711552246859,-2790.71,0.000536,7]
[320768183,1711552246868,-2790.71,0.000536,7]
[320768184,1711552246878,-501.0,0.00053671,120]
[320768185,1711552246887,-551.0,0.00053671,120]
[320768186,1711552246896,-672.0,0.00053671,120]
[320768187,1711552246906,-2706.55,0.00053698,120]
[320768188,1711552246914,-2500.0,0.000537,120]
[320768190,1711552246924,-151.55177306,0.00053712,60]
[320768192,1711552246933,-150.0,0.00053727,7]
[320768194,1711552246943,-156.48219575,0.00053729,60]
[320768197,1711552247098,-386.60453288,0.0005375,30]
[320768198,1711552247119,-150.0,0.00053769,7]
[320768199,1711552247130,-158.26380816,0.00053774,60]
[320768200,1711552247141,-2500.0,0.000538,120]
[320768201,1711552247151,-150.0,0.0005381,7]
[320768202,1711552247163,-158.26380816,0.00053822,60]
[320768203,1711552247175,-152.9250402,0.00053824,60]
[320768204,1711552247184,-217.21979707,0.00053839,60]
[320768205,1711552247195,-157.62305039,0.00053863,60]
[320768206,1711552247205,-201.29229083,0.000539,30]
[320768207,1711552247215,-2500.0,0.000539,120]
[320768208,1711552247226,-1083.13355601,0.000539,30]
[320768209,1711552247235,-16211.36413197,0.000539,30]
[320768210,1711552247245,-851.26727,0.000539,91]
[320768211,1711552247254,-154.30437427,0.00053919,60]
[320768212,1711552247266,-150.0,0.00053931,7]
[320768213,1711552247275,-501.0,0.00053945,120]
[320768214,1711552247285,-551.0,0.00053945,120]
[320768215,1711552247296,-672.0,0.00053945,120]
[320768216,1711552247305,-150.0,0.00053948,7]
[320768217,1711552247314,-156.48219575,0.00053949,60]
[320768218,1711552247326,-154.47608907,0.00053955,60]
[320768219,1711552247335,-154.14604573,0.00053963,7]
[320768220,1711552247344,-406.511796,0.00053963,120]
[320768221,1711552247353,-151.0,0.00053963,120]
[320768222,1711552247362,-406.511796,0.00053963,120]
[320768223,1711552247371,-151.0,0.00053963,120]
[320768224,1711552247381,-601.646655,0.00053963,120]
[320768225,1711552247390,-469.446104,0.00053963,120]
[320768226,1711552247399,-601.646655,0.00053963,120]
[320768227,1711552247408,-151.0,0.00053963,120]
[320768228,1711552247418,-469.446104,0.00053963,120]
[320768229,1711552247427,-382.776007,0.00053963,120]
[320768230,1711552247437,-151.0,0.00053963,120]
[320768231,1711552247446,-151.0,0.00053963,7]
[320768232,1711552247455,-382.776007,0.00053963,120]
[320768233,1711552247464,-243.855652,0.00053963,120]
[320768234,1711552247473,-243.855652,0.00053963,120]
[320768235,1711552247483,-937.899088,0.00053963,120]
[320768236,1711552247492,-937.899088,0.00053963,120]
[320768237,1711552247502,-151.0,0.00053963,7]
[320768238,1711552247511,-151.0,0.00053963,120]
[320768239,1711552247521,-151.0,0.00053963,120]
[320768240,1711552247531,-151.0,0.00053963,120]
[320768241,1711552247540,-151.0,0.00053963,120]
[320768242,1711552247549,-151.0,0.00053963,120]
[320768243,1711552247558,-151.0,0.00053963,120]
[320768244,1711552247569,-151.0,0.00053963,120]
[320768245,1711552247580,-660.314729,0.00053963,120]
[320768246,1711552247590,-660.314729,0.00053963,120]
[320768247,1711552247599,-151.0,0.00053963,120]
[320768248,1711552247609,-151.0,0.00053963,120]
[320768249,1711552247619,-151.0,0.00053963,120]
[320768250,1711552247628,-151.0,0.00053963,120]
[320768251,1711552247637,-272.911968,0.00053963,120]
[320768252,1711552247646,-151.509988,0.00053963,120]
[320768253,1711552247655,-272.911968,0.00053963,120]
[320768254,1711552247664,-151.0,0.00053963,120]
[320768255,1711552247673,-151.0,0.00053963,120]
[320768256,1711552247682,-151.334142,0.00053963,21]
[320768257,1711552247691,-151.499665,0.00053963,3]
[320768258,1711552247700,-151.0,0.00053963,120]
[320768259,1711552247710,-151.0,0.00053963,120]
[320768260,1711552247719,-151.0,0.00053963,120]
[320768261,1711552247728,-151.0,0.00053963,120]
[320768262,1711552247738,-290.17522,0.00053963,120]
[320768263,1711552247747,-151.0,0.00053963,120]
[320768264,1711552247756,-151.0,0.00053963,120]
[320768265,1711552247766,-151.0,0.00053963,120]
[320768266,1711552247775,-151.0,0.00053963,120]
[320768267,1711552247784,-301.942585,0.00053963,120]
[320768268,1711552247794,-151.0,0.00053963,120]
[320768269,1711552247804,-151.0,0.00053963,120]
[320768270,1711552247814,-151.0,0.00053963,120]
[320768271,1711552247824,-151.0,0.00053963,120]
[320768272,1711552247834,-151.0,0.00053963,120]
[320768273,1711552247843,-151.0,0.00053963,120]
[320768274,1711552247853,-151.0,0.00053963,120]
[320768275,1711552247865,-151.0,0.00053963,120]
[320768276,1711552247875,-151.0,0.00053963,120]
[320768277,1711552247885,-151.0,0.00053963,60]
[320768278,1711552247896,-7465.0,0.0005397,15]
[320768279,1711552247907,-374.0,0.0005397,15]
[320768280,1711552247917,-4076.0,0.0005397,15]
[320768281,1711552247927,-616.0,0.0005397,15]
[320768282,1711552247936,-1448.0,0.0005397,15]
[320768283,1711552247946,-150.0,0.00053975,7]
[320768284,1711552247955,-7465.0,0.0005398,15]
[320768285,1711552247965,-374.0,0.0005398,15]
[320768286,1711552247974,-7465.0,0.0005398,15]
[320768287,1711552247983,-4076.0,0.0005398,15]
[320768288,1711552247993,-616.0,0.0005398,15]
[320768289,1711552248003,-374.0,0.0005398,15]
[320768290,1711552248012,-616.0,0.0005398,15]
[320768291,1711552248022,-4076.0,0.0005398,15]
[320768292,1711552248031,-1448.0,0.0005398,15]
[320768293,1711552248041,-1448.0,0.0005398,15]
[320768294,1711552248050,-150.0,0.00053986,14]
[320768295,1711552248059,-332476.52249743,0.00053987,120]
[320768296,1711552248069,-151.0,0.00053987,120]
[320768297,1711552248080,-151.0,0.00053987,120]
[320768298,1711552248088,-236.608929,0.00053987,120]
[320768299,1711552248098,-170.100149,0.00053987,120]
[320768300,1711552248107,-151.333182,0.00053987,120]
[320768301,1711552248116,-151.0,0.00053987,120]
[320768302,1711552248126,-151.0,0.00053987,120]
[320768303,1711552248135,-151.0,0.00053987,120]
[320768304,1711552248145,-151.0,0.00053987,120]
[320768305,1711552248156,-151.0,0.00053987,120]
[320768306,1711552248165,-151.0,0.00053987,120]
[320768307,1711552248175,-150.0,0.00053987,7]
[320768308,1711552248185,-151.0,0.00053987,120]
[320768309,1711552248194,-151.0,0.00053987,120]
[320768310,1711552248203,-151.0,0.00053987,120]
[320768311,1711552248213,-7465.0,0.0005399,15]
[320768312,1711552248223,-374.0,0.0005399,15]
[320768313,1711552248232,-4076.0,0.0005399,15]
[320768314,1711552248243,-7465.0,0.0005399,15]
[320768315,1711552248253,-616.0,0.0005399,15]
[320768316,1711552248263,-374.0,0.0005399,15]
[320768317,1711552248273,-616.0,0.0005399,15]
[320768318,1711552248283,-151.0,0.0005399,120]
[320768319,1711552248292,-151.0,0.0005399,120]
[320768320,1711552248302,-151.0,0.0005399,120]
[320768321,1711552248311,-151.0,0.0005399,120]
[320768322,1711552248322,-151.0,0.0005399,120]
[320768323,1711552248331,-151.0,0.0005399,120]
[320768324,1711552248340,-151.0,0.0005399,120]
[320768325,1711552248351,-151.0,0.0005399,120]
[320768326,1711552248361,-309.667254,0.0005399,30]
[320768327,1711552248371,-309.667254,0.0005399,30]
[320768328,1711552248380,-151.0,0.0005399,120]
[320768329,1711552248389,-151.0,0.0005399,120]
[320768330,1711552248399,-197.265884,0.0005399,120]
[320768331,1711552248408,-151.0,0.0005399,120]
[320768332,1711552248418,-151.0,0.0005399,120]
[320768333,1711552248428,-197.265884,0.0005399,120]
[320768334,1711552248437,-168.606571,0.0005399,120]
[320768335,1711552248447,-151.0,0.0005399,120]
[320768336,1711552248456,-151.0,0.0005399,120]
[320768337,1711552248466,-150.0,0.0005399,7]
[320768338,1711552248475,-4076.0,0.0005399,15]
[320768339,1711552248485,-1448.0,0.0005399,15]
[320768340,1711552248494,-1448.0,0.0005399,15]
[320768341,1711552248503,-36521.86386174,0.0005399,30]
[320768342,1711552248513,-150.0,0.00053991,7]
[320768343,1711552248523,-151.55177306,0.00053992,60]
[320768344,1711552248533,-150.0,0.00053997,14]
[320768345,1711552248542,-150.0,0.00053997,14]
[320768346,1711552248551,-34961.8244272,0.00053998,7]
[320768347,1711552249053,-751670.46751186,0.00053998,7]
[320768348,1711552249066,-348386.00989695,0.00053998,7]
[320768349,1711552249080,-216627.84641107,0.00053998,7]
[320768350,1711552249107,-698.25,0.00053998,7]
[320768351,1711552249118,-69950.0,0.00053998,7]
[320768352,1711552249863,-429.25617808,0.00019178,2]
[320768353,1711552249874,-5000.0,0.00044,14]
[320768354,1711552249883,-560.75087012,0.00048,4]
[320768355,1711552249893,-5777.01161238,0.00052,120]
[320768356,1711552249902,-739774.60422268,0.00053998,7]